[Event "Late-Titled-Tuesday-Blitz-February-27-2024"]
[Site "Chess.com"]
[Date "2024.02.27"]
[Round "1"]
[White "tteshan"]
[Black "Fjal"]
[Result "0-1"]
[WhiteElo "2588"]
[BlackElo "2282"]
[TimeControl "180+1"]
[EndTime "14:08:41 PST"]
[Termination "Fjal won by resignation"]

1. e4 {[%clk 0:02:57.8]} 1... d6 {[%clk 0:02:16.6]} 2. d4 {[%clk 0:02:55.1]}
2... g6 {[%clk 0:02:17.5]} 3. Nc3 {[%clk 0:02:52.8]} 3... c6 {[%clk 0:02:17.8]}
4. Be3 {[%clk 0:02:51]} 4... b5 {[%clk 0:02:18.4]} 5. Qd2 {[%clk 0:02:50]} 5...
Bg7 {[%clk 0:02:18.7]} 6. h4 {[%clk 0:02:48.3]} 6... h5 {[%clk 0:02:18.3]} 7.
Nf3 {[%clk 0:02:46.8]} 7... Qa5 {[%clk 0:02:18.8]} 8. Bd3 {[%clk 0:02:40.9]}
8... Nd7 {[%clk 0:02:19.2]} 9. Ne2 {[%clk 0:02:34.3]} 9... Qxd2+ {[%clk
0:02:18.5]} 10. Kxd2 {[%clk 0:02:35.1]} 10... Ngf6 {[%clk 0:02:19.1]} 11. c3
{[%clk 0:02:32.1]} 11... Ng4 {[%clk 0:02:19.5]} 12. Rae1 {[%clk 0:02:18.5]}
12... a5 {[%clk 0:02:14]} 13. Rhf1 {[%clk 0:02:16.9]} 13... Bb7 {[%clk
0:02:12.7]} 14. Kc2 {[%clk 0:02:14.6]} 14... Nxe3+ {[%clk 0:02:12]} 15. fxe3
{[%clk 0:02:15.5]} 15... e5 {[%clk 0:02:12.4]} 16. Nc1 {[%clk 0:02:13.6]} 16...
O-O {[%clk 0:02:10.9]} 17. Ng5 {[%clk 0:02:12.7]} 17... Rae8 {[%clk 0:02:04.4]}
18. d5 {[%clk 0:02:07.6]} 18... f6 {[%clk 0:02:04.4]} 19. Ne6 {[%clk 0:02:06]}
19... Rxe6 {[%clk 0:02:04.6]} 20. dxe6 {[%clk 0:02:04.9]} 20... Nc5 {[%clk
0:02:05.2]} 21. Rd1 {[%clk 0:01:56.4]} 21... Nxe6 {[%clk 0:01:59.4]} 22. b4
{[%clk 0:01:49.7]} 22... axb4 {[%clk 0:01:56.1]} 23. cxb4 {[%clk 0:01:50.6]}
23... Ra8 {[%clk 0:01:55.9]} 24. Kb2 {[%clk 0:01:45.9]} 24... Kf7 {[%clk
0:01:53.4]} 25. Bc2 {[%clk 0:01:45.7]} 25... Ke7 {[%clk 0:01:53]} 26. Bb3 {[%clk
0:01:45.7]} 26... Bh6 {[%clk 0:01:50.6]} 27. Rf3 {[%clk 0:01:41.1]} 27... Bc8
{[%clk 0:01:41.1]} 28. Rdf1 {[%clk 0:01:37.8]} 28... Bg7 {[%clk 0:01:41]} 29.
Rg3 {[%clk 0:01:36.5]} 29... Nf8 {[%clk 0:01:37.8]} 30. Bc2 {[%clk 0:01:17.8]}
30... Be6 {[%clk 0:01:33]} 31. Nb3 {[%clk 0:01:17.7]} 31... Bf7 {[%clk
0:01:23.8]} 32. Na5 {[%clk 0:01:15.8]} 32... Ra6 {[%clk 0:01:19.2]} 33. Rc1
{[%clk 0:01:09.1]} 33... Nd7 {[%clk 0:01:15]} 34. Bd3 {[%clk 0:01:06.3]} 34...
Nb8 {[%clk 0:01:01.6]} 35. Be2 {[%clk 0:01:03.2]} 35... Bh6 {[%clk 0:00:50]} 36.
a3 {[%clk 0:01:01.7]} 36... Be8 {[%clk 0:00:49]} 37. Bd3 {[%clk 0:00:54.8]}
37... Rb6 {[%clk 0:00:47.6]} 38. Rf3 {[%clk 0:00:53.8]} 38... Bg7 {[%clk
0:00:46.5]} 39. Rff1 {[%clk 0:00:51.1]} 39... Bd7 {[%clk 0:00:45]} 40. Rcd1
{[%clk 0:00:45.9]} 40... Be6 {[%clk 0:00:44.1]} 41. Bc2 {[%clk 0:00:45]} 41...
Nd7 {[%clk 0:00:40.7]} 42. Bb3 {[%clk 0:00:41.1]} 42... c5 {[%clk 0:00:39.7]}
43. Bxe6 {[%clk 0:00:38.5]} 43... Kxe6 {[%clk 0:00:39.9]} 44. Rd5 {[%clk
0:00:34.6]} 44... c4 {[%clk 0:00:39.5]} 45. Kc3 {[%clk 0:00:33.4]} 45... Bf8
{[%clk 0:00:39.1]} 46. Rf3 {[%clk 0:00:27.3]} 46... Be7 {[%clk 0:00:39.4]} 47.
Rd1 {[%clk 0:00:26.7]} 47... f5 {[%clk 0:00:40]} 48. exf5+ {[%clk 0:00:25.6]}
48... gxf5 {[%clk 0:00:40.9]} 49. g3 {[%clk 0:00:25.5]} 49... e4 {[%clk
0:00:41.4]} 50. Rf2 {[%clk 0:00:24.8]} 50... Bf6+ {[%clk 0:00:42]} 51. Kc2
{[%clk 0:00:24.1]} 51... Ne5 {[%clk 0:00:42.5]} 52. Rdf1 {[%clk 0:00:21.5]}
52... Nf3 {[%clk 0:00:43]} 53. Rb1 {[%clk 0:00:15.2]} 53... Be5 {[%clk
0:00:42.5]} 54. Rg2 {[%clk 0:00:14.5]} 54... Kd7 {[%clk 0:00:40.8]} 55. Rd1
{[%clk 0:00:14.3]} 55... Kc7 {[%clk 0:00:41.1]} 56. Kb1 {[%clk 0:00:10.1]} 56...
Rb8 {[%clk 0:00:41.6]} 57. Rd5 {[%clk 0:00:06.7]} 57... Rb6 {[%clk 0:00:26.3]}
58. Kc1 {[%clk 0:00:05.8]} 58... Rb8 {[%clk 0:00:26.4]} 59. Kd1 {[%clk
0:00:05.5]} 59... Rb6 {[%clk 0:00:25.8]} 60. Kc1 {[%clk 0:00:04.4]} 60... Rb8
{[%clk 0:00:25.8]} 61. a4 {[%clk 0:00:03.6]} 61... bxa4 {[%clk 0:00:25.6]} 62.
Nxc4 {[%clk 0:00:03.8]} 62... Rxb4 {[%clk 0:00:25.1]} 63. Nxe5 {[%clk
0:00:03.9]} 63... Nxe5 {[%clk 0:00:26]} 64. Ra5 {[%clk 0:00:03.4]} 64... Nd3+
{[%clk 0:00:24.8]} 65. Kd1 {[%clk 0:00:04]} 65... Kb6 {[%clk 0:00:24.8]} 66. Ra8
{[%clk 0:00:03]} 66... Rb1+ {[%clk 0:00:25.5]} 67. Kc2 {[%clk 0:00:03.2]} 67...
Rb2+ {[%clk 0:00:25.7]} 68. Kc3 {[%clk 0:00:02.8]} 68... Rxg2 {[%clk 0:00:26.6]}
69. Rxa4 {[%clk 0:00:02.5]} 69... Kc5 {[%clk 0:00:25.6]} 70. Ra5+ {[%clk
0:00:02.6]} 70... Kc6 {[%clk 0:00:26.1]} 71. Rxf5 {[%clk 0:00:02.8]} 71... d5
{[%clk 0:00:26.7]} 72. Rxh5 {[%clk 0:00:03.2]} 72... Rxg3 {[%clk 0:00:27.3]} 73.
Kd4 {[%clk 0:00:03.2]} 73... Rg6 {[%clk 0:00:26.4]} 74. Rh6 {[%clk 0:00:03.7]}
74... Rxh6 {[%clk 0:00:26.2]} 75. h5 {[%clk 0:00:03.8]} 75... Rxh5 {[%clk
0:00:26.3]} 0-1

[Event "Late-Titled-Tuesday-Blitz-February-27-2024"]
[Site "Chess.com"]
[Date "2024.02.27"]
[Round "1"]
[White "Kiborg95"]
[Black "zsizsi99"]
[Result "1-0"]
[WhiteElo "2818"]
[BlackElo "2455"]
[TimeControl "180+1"]
[EndTime "14:08:42 PST"]
[Termination "Kiborg95 won on time"]

1. e4 {[%clk 0:03:00.9]} 1... c5 {[%clk 0:02:59.3]} 2. Nc3 {[%clk 0:02:58.7]}
2... Nc6 {[%clk 0:02:58.7]} 3. Nge2 {[%clk 0:02:59]} 3... e6 {[%clk 0:02:27.8]}
4. g3 {[%clk 0:02:58.7]} 4... c4 {[%clk 0:02:28.3]} 5. Bg2 {[%clk 0:02:58.5]}
5... Nf6 {[%clk 0:02:24.3]} 6. O-O {[%clk 0:02:54.6]} 6... Bc5 {[%clk
0:02:21.6]} 7. d4 {[%clk 0:02:52.4]} 7... cxd3 {[%clk 0:02:18.4]} 8. cxd3 {[%clk
0:02:53.3]} 8... d5 {[%clk 0:02:08.8]} 9. exd5 {[%clk 0:02:51.4]} 9... Nxd5
{[%clk 0:02:06.5]} 10. Nxd5 {[%clk 0:02:48.3]} 10... exd5 {[%clk 0:02:06.8]} 11.
Nf4 {[%clk 0:02:45.7]} 11... Ne7 {[%clk 0:01:58.7]} 12. Qa4+ {[%clk 0:02:34.8]}
12... Bd7 {[%clk 0:01:54.9]} 13. Qc2 {[%clk 0:02:27.3]} 13... Rc8 {[%clk
0:01:35.8]} 14. Nxd5 {[%clk 0:02:26.3]} 14... O-O {[%clk 0:01:15.9]} 15. Bg5
{[%clk 0:02:06.6]} 15... f6 {[%clk 0:01:08.6]} 16. Nxe7+ {[%clk 0:01:53]} 16...
Qxe7 {[%clk 0:01:04.4]} 17. Bf4 {[%clk 0:01:38.7]} 17... g5 {[%clk 0:00:45.4]}
18. Qb3+ {[%clk 0:01:09.1]} 18... Be6 {[%clk 0:00:32]} 19. Bd5 {[%clk
0:01:08.7]} 19... Bxd5 {[%clk 0:00:32.1]} 20. Qxd5+ {[%clk 0:01:09.6]} 20... Kg7
{[%clk 0:00:28.7]} 21. Rae1 {[%clk 0:01:07]} 21... Qd8 {[%clk 0:00:20.4]} 22.
Qxd8 {[%clk 0:00:49.6]} 22... Rfxd8 {[%clk 0:00:20]} 23. Be3 {[%clk 0:00:50.2]}
23... Bxe3 {[%clk 0:00:16.5]} 24. Rxe3 {[%clk 0:00:49.4]} 24... Rd7 {[%clk
0:00:14.4]} 25. Rfe1 {[%clk 0:00:45.7]} 25... Kf7 {[%clk 0:00:12.7]} 26. R1e2
{[%clk 0:00:44.3]} 26... Rc1+ {[%clk 0:00:12.6]} 27. Kg2 {[%clk 0:00:44.1]}
27... Rd1 {[%clk 0:00:13.1]} 28. Rc2 {[%clk 0:00:43.6]} 28... b6 {[%clk
0:00:10.5]} 29. Rc6 {[%clk 0:00:42.5]} 29... Kg6 {[%clk 0:00:06.3]} 30. Rf3
{[%clk 0:00:36.6]} 30... Rf7 {[%clk 0:00:06.3]} 31. Rc2 {[%clk 0:00:18.1]} 31...
Rd7 {[%clk 0:00:04.7]} 32. Rc6 {[%clk 0:00:11.1]} 32... Rf7 {[%clk 0:00:04]} 33.
a4 {[%clk 0:00:10.6]} 33... Rd2 {[%clk 0:00:04.2]} 34. b3 {[%clk 0:00:10.9]}
34... Rb2 {[%clk 0:00:04.9]} 35. d4 {[%clk 0:00:11.3]} 35... Rd2 {[%clk
0:00:04.5]} 36. Rd6 {[%clk 0:00:12]} 36... Kg7 {[%clk 0:00:03.1]} 37. g4 {[%clk
0:00:11.5]} 37... h6 {[%clk 0:00:03.1]} 38. h3 {[%clk 0:00:12]} 38... Kg6 {[%clk
0:00:03.6]} 39. Rf5 {[%clk 0:00:10.6]} 39... Rd3 {[%clk 0:00:03.4]} 40. Rf3
{[%clk 0:00:11.3]} 40... Rxf3 {[%clk 0:00:03.2]} 41. Kxf3 {[%clk 0:00:11.4]}
41... Rc7 {[%clk 0:00:04]} 42. Ke4 {[%clk 0:00:10.2]} 42... Rc3 {[%clk
0:00:04.2]} 43. Rd7 {[%clk 0:00:09.9]} 43... Rxb3 {[%clk 0:00:04.1]} 44. Rxa7
{[%clk 0:00:09.8]} 44... Rxh3 {[%clk 0:00:04]} 45. Rb7 {[%clk 0:00:10.5]} 45...
Ra3 {[%clk 0:00:04.3]} 46. Rxb6 {[%clk 0:00:08.8]} 46... Rxa4 {[%clk 0:00:04.7]}
47. f3 {[%clk 0:00:09.3]} 47... Kf7 {[%clk 0:00:03.3]} 48. Rb7+ {[%clk
0:00:06.9]} 48... Ke6 {[%clk 0:00:03.2]} 49. Rh7 {[%clk 0:00:07.6]} 49... Ra1
{[%clk 0:00:02.4]} 50. Rxh6 {[%clk 0:00:08.1]} 50... Re1+ {[%clk 0:00:01.9]} 51.
Kd3 {[%clk 0:00:08.8]} 51... Rf1 {[%clk 0:00:02.4]} 52. Ke3 {[%clk 0:00:09.3]}
52... Re1+ {[%clk 0:00:02.6]} 53. Kd3 {[%clk 0:00:09.7]} 53... Rd1+ {[%clk
0:00:02.5]} 54. Ke3 {[%clk 0:00:09]} 54... Re1+ {[%clk 0:00:02.9]} 55. Kd2
{[%clk 0:00:09.2]} 55... Rf1 {[%clk 0:00:03.1]} 56. Ke2 {[%clk 0:00:09.9]} 56...
Ra1 {[%clk 0:00:02.8]} 57. Rh8 {[%clk 0:00:10.4]} 57... Ra2+ {[%clk 0:00:02.8]}
58. Ke3 {[%clk 0:00:11.1]} 58... Ra1 {[%clk 0:00:02.2]} 59. Re8+ {[%clk
0:00:11.1]} 59... Kd7 {[%clk 0:00:02]} 60. Re4 {[%clk 0:00:11]} 60... Re1+
{[%clk 0:00:01.9]} 61. Kf2 {[%clk 0:00:11.5]} 61... Rd1 {[%clk 0:00:02.1]} 62.
Ke2 {[%clk 0:00:11.9]} 62... Ra1 {[%clk 0:00:02]} 63. Kd3 {[%clk 0:00:12.7]}
63... Rd1+ {[%clk 0:00:02.3]} 64. Kc3 {[%clk 0:00:13]} 64... Kd6 {[%clk
0:00:02.6]} 65. Kc4 {[%clk 0:00:13.1]} 65... Rf1 {[%clk 0:00:03]} 66. Re3 {[%clk
0:00:13.3]} 66... Rc1+ {[%clk 0:00:03.3]} 67. Kd3 {[%clk 0:00:13.9]} 67... Rd1+
{[%clk 0:00:03.5]} 68. Ke4 {[%clk 0:00:14.5]} 68... Rf1 {[%clk 0:00:03.3]} 69.
Ra3 {[%clk 0:00:14.7]} 69... Re1+ {[%clk 0:00:03.7]} 70. Kf5 {[%clk 0:00:15.2]}
70... Kd5 {[%clk 0:00:02.4]} 71. Kxf6 {[%clk 0:00:15.4]} 71... Kxd4 {[%clk
0:00:01.9]} 72. Kxg5 {[%clk 0:00:16]} 72... Ke5 {[%clk 0:00:01.3]} 73. f4+
{[%clk 0:00:15.8]} 73... Ke6 {[%clk 0:00:01.7]} 74. Kg6 {[%clk 0:00:16]} 74...
Rg1 {[%clk 0:00:01.1]} 75. g5 {[%clk 0:00:16.5]} 75... Ke7 {[%clk 0:00:01.7]}
76. f5 {[%clk 0:00:16.9]} 1-0

[Event "Late-Titled-Tuesday-Blitz-February-27-2024"]
[Site "Chess.com"]
[Date "2024.02.27"]
[Round "1"]
[White "Supelyel"]
[Black "Fandorine"]
[Result "0-1"]
[WhiteElo "2473"]
[BlackElo "2883"]
[TimeControl "180+1"]
[EndTime "14:08:56 PST"]
[Termination "Fandorine won on time"]

1. c4 {[%clk 0:02:57.9]} 1... e6 {[%clk 0:02:59]} 2. Nc3 {[%clk 0:02:53.9]} 2...
d5 {[%clk 0:02:55.4]} 3. cxd5 {[%clk 0:02:53.9]} 3... exd5 {[%clk 0:02:55]} 4.
d4 {[%clk 0:02:53]} 4... c6 {[%clk 0:02:51]} 5. Nf3 {[%clk 0:02:48.7]} 5... Bf5
{[%clk 0:02:48.9]} 6. Bf4 {[%clk 0:02:46.9]} 6... Nd7 {[%clk 0:02:45.3]} 7. e3
{[%clk 0:02:46.9]} 7... Ngf6 {[%clk 0:02:40.6]} 8. h3 {[%clk 0:02:46.9]} 8... h6
{[%clk 0:02:40.5]} 9. Bd3 {[%clk 0:02:42.5]} 9... Bxd3 {[%clk 0:02:40.1]} 10.
Qxd3 {[%clk 0:02:42.4]} 10... Be7 {[%clk 0:02:40.6]} 11. O-O {[%clk 0:02:39.9]}
11... Nf8 {[%clk 0:02:40.1]} 12. Rab1 {[%clk 0:02:39.3]} 12... a5 {[%clk
0:02:37]} 13. a3 {[%clk 0:02:38.5]} 13... Ne6 {[%clk 0:02:37.7]} 14. Bh2 {[%clk
0:02:38]} 14... O-O {[%clk 0:02:37.2]} 15. b4 {[%clk 0:02:27.7]} 15... axb4
{[%clk 0:02:26.9]} 16. axb4 {[%clk 0:02:26.9]} 16... b5 {[%clk 0:02:26.2]} 17.
Ne5 {[%clk 0:02:26.6]} 17... Qb6 {[%clk 0:02:25.8]} 18. Qc2 {[%clk 0:02:18.3]}
18... Rfc8 {[%clk 0:02:24.4]} 19. Nd3 {[%clk 0:01:55.4]} 19... Bf8 {[%clk
0:02:05.9]} 20. Ra1 {[%clk 0:01:41.1]} 20... Qb7 {[%clk 0:01:58.4]} 21. Qb2
{[%clk 0:01:39]} 21... Rxa1 {[%clk 0:01:47.2]} 22. Rxa1 {[%clk 0:01:38]} 22...
Ra8 {[%clk 0:01:48.1]} 23. Ra3 {[%clk 0:01:35.3]} 23... Ne4 {[%clk 0:01:43.9]}
24. Qa1 {[%clk 0:00:46]} 24... Rxa3 {[%clk 0:01:40]} 25. Qxa3 {[%clk 0:00:45.6]}
25... Nxc3 {[%clk 0:01:23.7]} 26. Qxc3 {[%clk 0:00:45.1]} 26... Qa6 {[%clk
0:01:24.1]} 27. Bg3 {[%clk 0:00:42.6]} 27... f6 {[%clk 0:01:15.6]} 28. h4 {[%clk
0:00:23.2]} 28... h5 {[%clk 0:01:12.8]} 29. Qc2 {[%clk 0:00:20.2]} 29... Kf7
{[%clk 0:01:09.1]} 30. Kh2 {[%clk 0:00:19.8]} 30... g6 {[%clk 0:01:09.1]} 31.
Qc3 {[%clk 0:00:17.8]} 31... Be7 {[%clk 0:01:02.5]} 32. Qb3 {[%clk 0:00:13.9]}
32... Qa1 {[%clk 0:00:52.3]} 33. f3 {[%clk 0:00:11.7]} 33... Qf1 {[%clk
0:00:50.7]} 34. Qc2 {[%clk 0:00:10.5]} 34... Nd8 {[%clk 0:00:35.2]} 35. Bf4
{[%clk 0:00:08.7]} 35... Ke6 {[%clk 0:00:30.3]} 36. Bc7 {[%clk 0:00:08.8]} 36...
Kd7 {[%clk 0:00:14.2]} 37. Bxd8 {[%clk 0:00:09.2]} 37... Bxd8 {[%clk 0:00:15.1]}
38. Nf4 {[%clk 0:00:09.9]} 38... Qc4 {[%clk 0:00:08.5]} 39. Qxg6 {[%clk
0:00:09.6]} 39... Qxb4 {[%clk 0:00:09.4]} 40. Qf5+ {[%clk 0:00:09.8]} 40... Kd6
{[%clk 0:00:05.8]} 41. Qe6+ {[%clk 0:00:08.7]} 41... Kc7 {[%clk 0:00:06.4]} 42.
Qf7+ {[%clk 0:00:09.3]} 42... Qe7 {[%clk 0:00:06.3]} 43. Ne6+ {[%clk 0:00:10.2]}
43... Kd7 {[%clk 0:00:04.1]} 44. Nc5+ {[%clk 0:00:09.5]} 44... Kc7 {[%clk
0:00:04.3]} 45. Qxh5 {[%clk 0:00:09.9]} 45... Kb6 {[%clk 0:00:03.1]} 46. Qh6
{[%clk 0:00:09]} 46... b4 {[%clk 0:00:02.5]} 47. e4 {[%clk 0:00:08.2]} 47...
dxe4 {[%clk 0:00:02.5]} 48. fxe4 {[%clk 0:00:08.9]} 48... Bc7+ {[%clk 0:00:03]}
49. g3 {[%clk 0:00:08.6]} 49... Qd6 {[%clk 0:00:03.2]} 50. Qe3 {[%clk
0:00:08.9]} 50... Ka7 {[%clk 0:00:02.5]} 51. Kg2 {[%clk 0:00:07.2]} 51... Bb6
{[%clk 0:00:03.1]} 52. Nb3 {[%clk 0:00:07]} 52... Qe6 {[%clk 0:00:03.2]} 53. Kf3
{[%clk 0:00:07.4]} 53... Qc4 {[%clk 0:00:03.6]} 54. h5 {[%clk 0:00:07.3]} 54...
Qf1+ {[%clk 0:00:04.1]} 55. Kg4 {[%clk 0:00:07.7]} 55... Qd1+ {[%clk 0:00:04.2]}
56. Kf5 {[%clk 0:00:07.9]} 56... Qxh5+ {[%clk 0:00:04.8]} 57. Ke6 {[%clk
0:00:08.2]} 57... Qe8+ {[%clk 0:00:04.9]} 58. Kxf6 {[%clk 0:00:08.4]} 58... Qf8+
{[%clk 0:00:05.5]} 59. Kg6 {[%clk 0:00:08]} 59... Qg8+ {[%clk 0:00:05.3]} 60.
Kh5 {[%clk 0:00:08]} 60... Qf7+ {[%clk 0:00:04.6]} 61. Kg4 {[%clk 0:00:08.2]}
61... Qe6+ {[%clk 0:00:04.6]} 62. Kf3 {[%clk 0:00:08.4]} 62... Qc4 {[%clk
0:00:04.6]} 63. e5 {[%clk 0:00:07.4]} 63... Qd5+ {[%clk 0:00:04.7]} 64. Kg4
{[%clk 0:00:07.2]} 64... Qe6+ {[%clk 0:00:04.6]} 65. Kf3 {[%clk 0:00:07.8]}
65... Qf5+ {[%clk 0:00:04.4]} 66. Qf4 {[%clk 0:00:06]} 66... Qd3+ {[%clk
0:00:04.5]} 67. Qe3 {[%clk 0:00:06.5]} 67... Qd1+ {[%clk 0:00:04.8]} 68. Ke4
{[%clk 0:00:06.6]} 68... Qh1+ {[%clk 0:00:04.2]} 69. Kf5 {[%clk 0:00:06.7]}
69... Qh5+ {[%clk 0:00:04.6]} 70. Ke4 {[%clk 0:00:06.7]} 70... Qg6+ {[%clk
0:00:04.8]} 71. Kf3 {[%clk 0:00:06.9]} 71... Qf5+ {[%clk 0:00:05]} 72. Qf4
{[%clk 0:00:06.7]} 72... Qh5+ {[%clk 0:00:04.5]} 73. g4 {[%clk 0:00:05.4]} 73...
Qh3+ {[%clk 0:00:04.4]} 74. Qg3 {[%clk 0:00:06]} 74... Qf1+ {[%clk 0:00:05]} 75.
Ke4 {[%clk 0:00:05.9]} 75... Qb1+ {[%clk 0:00:05.2]} 76. Qd3 {[%clk 0:00:06.1]}
76... Qh1+ {[%clk 0:00:05.7]} 77. Kf4 {[%clk 0:00:06.6]} 77... Qh2+ {[%clk
0:00:04.3]} 78. Kf5 {[%clk 0:00:06.8]} 78... Qh7+ {[%clk 0:00:04.3]} 79. Ke6
{[%clk 0:00:05.3]} 79... Qxd3 {[%clk 0:00:05]} 0-1

[Event "Late-Titled-Tuesday-Blitz-February-27-2024"]
[Site "Chess.com"]
[Date "2024.02.27"]
[Round "1"]
[White "Alphafischer2019"]
[Black "Akhayan"]
[Result "1/2-1/2"]
[WhiteElo "2696"]
[BlackElo "2409"]
[TimeControl "180+1"]
[EndTime "14:08:59 PST"]
[Termination "Game drawn - insufficient material"]

1. e4 {[%clk 0:03:00.9]} 1... c5 {[%clk 0:02:58.5]} 2. Nf3 {[%clk 0:02:58.3]}
2... e6 {[%clk 0:02:58.3]} 3. d3 {[%clk 0:02:58.7]} 3... Nf6 {[%clk 0:02:57.1]}
4. g3 {[%clk 0:02:57.6]} 4... Nc6 {[%clk 0:02:57.2]} 5. Bg2 {[%clk 0:02:58]}
5... d5 {[%clk 0:02:53.1]} 6. Qe2 {[%clk 0:02:57.8]} 6... dxe4 {[%clk
0:02:48.4]} 7. dxe4 {[%clk 0:02:58.7]} 7... Be7 {[%clk 0:02:47.6]} 8. O-O {[%clk
0:02:36.9]} 8... O-O {[%clk 0:02:45.7]} 9. e5 {[%clk 0:02:34.8]} 9... Nd5 {[%clk
0:02:42.5]} 10. Nbd2 {[%clk 0:02:30]} 10... Ndb4 {[%clk 0:02:40.5]} 11. Ne4
{[%clk 0:02:23.7]} 11... b6 {[%clk 0:02:38.3]} 12. Rd1 {[%clk 0:02:22]} 12...
Qc7 {[%clk 0:02:37.7]} 13. a3 {[%clk 0:02:11.4]} 13... Ba6 {[%clk 0:02:37.2]}
14. c4 {[%clk 0:02:11.5]} 14... Nd5 {[%clk 0:02:30.2]} 15. Qc2 {[%clk
0:02:00.2]} 15... Nxe5 {[%clk 0:02:24.2]} 16. cxd5 {[%clk 0:01:57.1]} 16... exd5
{[%clk 0:02:24.1]} 17. Nxe5 {[%clk 0:01:51.7]} 17... dxe4 {[%clk 0:02:14]} 18.
Qxe4 {[%clk 0:01:47.7]} 18... Rae8 {[%clk 0:02:05.3]} 19. Qf5 {[%clk 0:01:17.1]}
19... Bc8 {[%clk 0:02:01]} 20. Nd7 {[%clk 0:01:11.5]} 20... Rd8 {[%clk 0:01:52]}
21. Bf4 {[%clk 0:01:06.3]} 21... Rxd7 {[%clk 0:01:33.5]} 22. Qe4 {[%clk
0:00:54.2]} 22... Bd6 {[%clk 0:01:04.8]} 23. Rxd6 {[%clk 0:00:38.4]} 23... Rxd6
{[%clk 0:01:04.8]} 24. Qe5 {[%clk 0:00:39]} 24... Rfd8 {[%clk 0:00:50.8]} 25.
Re1 {[%clk 0:00:39.4]} 25... Be6 {[%clk 0:00:45.1]} 26. Bh3 {[%clk 0:00:31.6]}
26... Qd7 {[%clk 0:00:32.3]} 27. Qxd6 {[%clk 0:00:12.3]} 27... Qxd6 {[%clk
0:00:32.2]} 28. Bxd6 {[%clk 0:00:13]} 28... Rxd6 {[%clk 0:00:22.9]} 29. Bf1
{[%clk 0:00:13.2]} 29... g6 {[%clk 0:00:20]} 30. Rc1 {[%clk 0:00:07.8]} 30...
Kg7 {[%clk 0:00:19.5]} 31. b4 {[%clk 0:00:08.2]} 31... cxb4 {[%clk 0:00:18.7]}
32. axb4 {[%clk 0:00:09.1]} 32... Rd7 {[%clk 0:00:17]} 33. b5 {[%clk 0:00:07.8]}
33... h5 {[%clk 0:00:16.5]} 34. h4 {[%clk 0:00:07.6]} 34... Bf5 {[%clk
0:00:14.9]} 35. Kg2 {[%clk 0:00:07.6]} 35... Re7 {[%clk 0:00:14.9]} 36. Ra1
{[%clk 0:00:05.9]} 36... Be4+ {[%clk 0:00:14.5]} 37. f3 {[%clk 0:00:06.4]} 37...
Bd5 {[%clk 0:00:13.1]} 38. Kf2 {[%clk 0:00:07.3]} 38... Rc7 {[%clk 0:00:11.9]}
39. Bd3 {[%clk 0:00:07.9]} 39... Be6 {[%clk 0:00:12.1]} 40. Ke3 {[%clk
0:00:08.4]} 40... Kf6 {[%clk 0:00:12.6]} 41. Ra4 {[%clk 0:00:08.4]} 41... Re7
{[%clk 0:00:12.5]} 42. Kf2 {[%clk 0:00:07.3]} 42... Bd5 {[%clk 0:00:12.3]} 43.
g4 {[%clk 0:00:07.2]} 43... hxg4 {[%clk 0:00:12.1]} 44. fxg4 {[%clk 0:00:08.1]}
44... Kg7 {[%clk 0:00:12.3]} 45. h5 {[%clk 0:00:08.6]} 45... gxh5 {[%clk
0:00:12]} 46. gxh5 {[%clk 0:00:09.5]} 46... Kh6 {[%clk 0:00:12.3]} 47. Be2
{[%clk 0:00:08.3]} 47... Be6 {[%clk 0:00:11]} 48. Rf4 {[%clk 0:00:08.4]} 48...
Rc7 {[%clk 0:00:10.3]} 49. Rf6+ {[%clk 0:00:07.9]} 49... Kg7 {[%clk 0:00:10.7]}
50. Rf3 {[%clk 0:00:06.7]} 50... Rc8 {[%clk 0:00:09]} 51. Kg3 {[%clk 0:00:06.7]}
51... Rh8 {[%clk 0:00:09.2]} 52. Kh4 {[%clk 0:00:07.3]} 52... Kf8 {[%clk
0:00:06.4]} 53. Kg5 {[%clk 0:00:07.6]} 53... Ke7 {[%clk 0:00:06.7]} 54. h6
{[%clk 0:00:07.6]} 54... Bd5 {[%clk 0:00:05.6]} 55. Re3+ {[%clk 0:00:07.6]}
55... Kd6 {[%clk 0:00:05.5]} 56. Bd3 {[%clk 0:00:07.1]} 56... Kc5 {[%clk
0:00:05]} 57. h7 {[%clk 0:00:07]} 57... Kd4 {[%clk 0:00:05.3]} 58. Rh3 {[%clk
0:00:07.7]} 58... Be6 {[%clk 0:00:05.3]} 59. Bf5 {[%clk 0:00:06.7]} 59... Bxf5
{[%clk 0:00:05.3]} 60. Kxf5 {[%clk 0:00:07.6]} 60... Kc5 {[%clk 0:00:05.6]} 61.
Kf6 {[%clk 0:00:07.6]} 61... Kxb5 {[%clk 0:00:06]} 62. Kg7 {[%clk 0:00:06.4]}
62... Rxh7+ {[%clk 0:00:05.9]} 63. Kxh7 {[%clk 0:00:07.3]} 63... a5 {[%clk
0:00:05.9]} 64. Kg7 {[%clk 0:00:07.9]} 64... Kb4 {[%clk 0:00:06.5]} 65. Kxf7
{[%clk 0:00:08.6]} 65... a4 {[%clk 0:00:07]} 66. Ke6 {[%clk 0:00:09]} 66... a3
{[%clk 0:00:07.5]} 67. Rh2 {[%clk 0:00:06]} 67... Kb3 {[%clk 0:00:07.1]} 68. Kd5
{[%clk 0:00:06.7]} 68... a2 {[%clk 0:00:07.1]} 69. Rh3+ {[%clk 0:00:07.1]} 69...
Kb2 {[%clk 0:00:07.5]} 70. Rh2+ {[%clk 0:00:07]} 70... Kb1 {[%clk 0:00:07.9]}
71. Rh1+ {[%clk 0:00:06.7]} 71... Kb2 {[%clk 0:00:08.4]} 72. Kc4 {[%clk
0:00:07.6]} 72... a1=Q {[%clk 0:00:08.5]} 73. Rxa1 {[%clk 0:00:08.5]} 73... Kxa1
{[%clk 0:00:08.9]} 74. Kb4 {[%clk 0:00:09.3]} 74... Kb2 {[%clk 0:00:09]} 75. Kb5
{[%clk 0:00:10.2]} 75... Kc3 {[%clk 0:00:09.3]} 76. Kxb6 {[%clk 0:00:11.1]}
1/2-1/2